fUST/lending_fUST_20260118
["ID","MTS","AMOUNT","RATE_DAILY","PERIOD"]
[402433732,1768677045440,-500.0,0.00016438,3]
[402433733,1768677045450,-500.0,0.00016438,3]
[402433734,1768677045459,-500.0,0.00016438,3]
[402433735,1768677045470,-778.71,0.00016438,3]
[402433736,1768677045480,-1032.1,0.00016438,3]
[402433737,1768677045490,-500.0,0.00016438,3]
[402433738,1768677045500,-513.00114578,0.00016438,3]
[402433739,1768677045510,-500.0,0.00016438,2]
[402433740,1768677045519,-500.0,0.00016438,3]
[402433741,1768677045541,-500.0,0.00016438,3]
[402433742,1768677045553,-643.98345217,0.00016438,3]
[402433743,1768677045563,-500.0,0.00016438,3]
[402433744,1768677045574,-500.0,0.00016438,3]
[402433745,1768677045584,-500.0,0.00016438,3]
[402433746,1768677045593,-500.0,0.00016438,3]
[402433747,1768677045603,-500.0,0.00016438,3]
[402433748,1768677045614,-500.0,0.00016438,3]
[402433749,1768677045625,-500.0,0.00016438,3]
[402433751,1768677045781,-500.0,0.00016438,3]
[402433752,1768677045792,-862.94,0.00016438,3]
[402433753,1768677045801,-500.0,0.00016438,3]
[402433754,1768677045810,-500.0,0.00016438,3]
[402433755,1768677045820,-500.0,0.00016438,3]
[402433756,1768677045829,-500.0,0.00016438,3]
[402433757,1768677045838,-500.0,0.00016438,3]
[402433758,1768677045848,-824.42,0.00016438,3]
[402433759,1768677045858,-500.0,0.00016438,3]
[402433760,1768677045868,-517.81430866,0.00016438,3]
[402433761,1768677045877,-972.71,0.00016438,3]
[402433762,1768677045887,-505.85783189,0.00016438,3]
[402433763,1768677045896,-505.28,0.00016438,3]
[402433764,1768677045906,-500.0,0.00016438,3]
[402433765,1768677045916,-500.0,0.00016438,3]
[402433766,1768677045926,-500.0,0.00016438,3]
[402433767,1768677045935,-544.53494198,0.00016438,3]
[402433768,1768677045945,-500.0,0.00016438,3]
[402433769,1768677045955,-676.38,0.00016438,3]
[402433770,1768677045965,-500.0,0.00016438,3]
[402433771,1768677045975,-500.0,0.00016438,3]
[402433772,1768677045985,-500.0,0.00016438,3]
[402433773,1768677045994,-500.0,0.00016438,3]
[402433774,1768677046004,-500.0,0.00016438,3]
[402433775,1768677046014,-500.0,0.00016438,3]
[402433776,1768677046024,-500.0,0.00016438,3]
[402433777,1768677046034,-718.46,0.00016438,3]
[402433778,1768677046045,-500.0,0.00016438,3]
[402433779,1768677046055,-500.0,0.00016438,3]
[402433780,1768677046064,-795.48,0.00016438,3]
[402433781,1768677046074,-500.0,0.00016438,3]
[402433782,1768677046084,-500.0,0.00016438,3]
[402433783,1768677046093,-1494.36,0.00016438,3]
[402433784,1768677046103,-500.0,0.00016438,3]
[402433785,1768677046112,-527.51,0.00016438,3]
[402433786,1768677046122,-1636.62,0.00016438,3]
[402433787,1768677046132,-500.0,0.00016438,3]
[402433788,1768677046142,-500.0,0.00016438,3]
[402433789,1768677046151,-500.0,0.00016438,3]
[402433790,1768677046161,-955.79,0.00016438,3]
[402433791,1768677046171,-500.0,0.00016438,3]
[402433792,1768677046181,-500.0,0.00016438,3]
[402433793,1768677046192,-580.87,0.00016438,3]
[402433794,1768677046202,-752.06,0.00016438,3]
[402433795,1768677046212,-500.0,0.00016438,3]
[402433796,1768677046222,-500.0,0.00016438,3]
[402433797,1768677046232,-500.0,0.00016438,3]
[402433798,1768677046242,-535.27896173,0.00016438,3]
[402433799,1768677046258,-905.51,0.00016438,3]
[402433800,1768677046269,-500.0,0.00016438,3]
[402433801,1768677046279,-1208.54,0.00016438,3]
[402433802,1768677046289,-1438.2,0.00016438,3]
[402433803,1768677046299,-1688.51,0.00016438,3]
[402433804,1768677046308,-500.0,0.00016438,3]
[402433805,1768677046318,-500.0,0.00016438,3]
[402433806,1768677046329,-500.0,0.00016438,3]
[402433807,1768677046338,-500.0,0.00016438,3]
[402433808,1768677046348,-932.73,0.00016438,3]
[402433809,1768677046357,-325.21716664,0.00016438,3]
[402433810,1768677046368,-500.0,0.00016438,3]
[402433811,1768677046377,-706.53,0.00016438,3]
[402433812,1768677046387,-947.08,0.00016438,3]
[402433813,1768677046397,-1057.27,0.00016438,3]
[402433814,1768677046407,-500.0,0.00016438,3]
[402433815,1768677046417,-2004.45,0.00016438,3]
[402433816,1768677046427,-500.0,0.00016438,3]
[402433817,1768677046436,-469.18172049,0.00016438,3]
[402433818,1768677046446,-500.0,0.00016438,3]
[402433819,1768677046456,-500.0,0.00016438,3]
[402433820,1768677046465,-500.0,0.00016438,3]
[402433821,1768677046475,-500.0,0.00016438,3]
[402433822,1768677046485,-500.0,0.00016438,3]
[402433823,1768677046499,-688.08,0.00016438,3]
[402433824,1768677046508,-500.0,0.00016438,3]
[402433825,1768677046518,-500.0,0.00016438,3]
[402433826,1768677046527,-500.0,0.00016438,3]
[402433827,1768677046537,-648.33,0.00016438,3]
[402433828,1768677046547,-500.0,0.00016438,3]
[402433829,1768677046556,-1181.35,0.00016438,3]
[402433830,1768677046566,-500.0,0.00016438,3]
[402433831,1768677046575,-500.0,0.00016438,3]
[402433832,1768677046585,-500.0,0.00016438,3]
[402433833,1768677046594,-500.0,0.00016438,3]
[402433834,1768677046603,-500.0,0.00016438,3]
[402433835,1768677046613,-501.8453365,0.00016438,3]
[402433836,1768677046622,-500.0,0.00016438,3]
[402433837,1768677046632,-500.0,0.00016438,3]
[402433838,1768677046642,-950.08,0.00016438,3]
[402433839,1768677046651,-500.0,0.00016438,3]
[402433840,1768677046661,-500.0,0.00016438,3]
[402433841,1768677046670,-500.0,0.00016438,3]
[402433842,1768677046680,-1122.16,0.00016438,3]
[402433843,1768677046690,-1477.98,0.00016438,3]
[402433844,1768677046699,-1022.4,0.00016438,3]
[402433845,1768677046710,-509.99937096,0.00016438,3]
[402433846,1768677046720,-500.0,0.00016438,3]
[402433847,1768677046729,-500.0,0.00016438,3]
[402433848,1768677046739,-500.0,0.00016438,3]
[402433849,1768677046749,-500.0,0.00016438,3]
[402433850,1768677046758,-500.0,0.00016438,3]
[402433851,1768677046768,-500.0,0.00016438,3]
[402433852,1768677046778,-500.0,0.00016438,3]
[402433853,1768677046787,-1748.87,0.00016438,3]
[402433854,1768677046796,-506.9,0.00016438,3]
[402433855,1768677046806,-634.5,0.00016438,3]
[402433856,1768677046816,-966.6,0.00016438,3]
[402433857,1768677046826,-444.83809808,0.00016438,3]
[402433858,1768677046836,-1501.65,0.00016438,3]
[402433859,1768677046845,-500.0,0.00016438,3]
[402433860,1768677046855,-1015.88,0.00016438,3]
[402433861,1768677046864,-500.0,0.00016438,3]
[402433862,1768677046875,-501.58858315,0.00016438,3]
[402433863,1768677046885,-500.0,0.00016438,3]
[402433864,1768677046895,-770.84,0.00016438,3]
[402433865,1768677046904,-531.86,0.00016438,3]
[402433866,1768677046914,-500.0,0.00016438,3]
[402433867,1768677046924,-500.0,0.00016438,3]
[402433868,1768677046933,-500.0,0.00016438,3]
[402433869,1768677046943,-500.0,0.00016438,3]
[402433870,1768677046952,-1392.58,0.00016438,3]
[402433871,1768677046962,-500.0,0.00016438,3]
[402433872,1768677046972,-500.0,0.00016438,3]
[402433873,1768677046981,-500.0,0.00016438,3]
[402433874,1768677046991,-500.0,0.00016438,3]
[402433875,1768677047000,-500.0,0.00016438,3]
[402433876,1768677047010,-500.0,0.00016438,3]
[402433877,1768677047020,-1290.77,0.00016438,3]
[402433878,1768677047029,-172.6105479,0.00016438,3]
[402433879,1768677047039,-500.0,0.00016438,3]
[402433880,1768677047048,-500.0,0.00016438,3]
[402433881,1768677047056,-500.0,0.00016438,3]
[402433882,1768677047066,-500.0,0.00016438,3]
[402433883,1768677047075,-500.0,0.00016438,3]
[402433884,1768677047084,-1293.8,0.00016438,3]
[402433885,1768677047093,-500.0,0.00016438,3]
[402433886,1768677047103,-1240.0,0.00016438,3]
[402433887,1768677047111,-500.0,0.00016438,3]
[402433888,1768677047121,-500.0,0.00016438,3]
[402433889,1768677047131,-500.0,0.00016438,3]
[402433890,1768677047140,-942.26,0.00016438,3]
[402433891,1768677047150,-500.0,0.00016438,3]
[402433892,1768677047158,-500.0,0.00016438,3]
[402433893,1768677047167,-478.32257424,0.00016438,3]
[402433894,1768677047176,-500.0,0.00016438,3]
[402433895,1768677047185,-500.0,0.00016438,3]
[402433896,1768677047195,-500.0,0.00016438,3]
[402433897,1768677047205,-680.81,0.00016438,3]
[402433898,1768677047214,-863.4,0.00016438,3]
[402433899,1768677047223,-500.0,0.00016438,3]
[402433900,1768677047233,-500.0,0.00016438,3]
[402433901,1768677047245,-613.24737358,0.00016438,3]
[402433902,1768677047258,-500.0,0.00016438,3]
[402433903,1768677047268,-500.0,0.00016438,3]
[402433904,1768677047277,-464.68587701,0.00016438,3]
[402433905,1768677047288,-500.0,0.00016438,3]
[402433906,1768677047299,-860.12,0.00016438,3]
[402433907,1768677047317,-500.0,0.00016438,3]
[402433908,1768677047328,-1611.57,0.00016438,3]
[402433909,1768677047338,-500.0,0.00016438,3]
[402433910,1768677047347,-882.95,0.00016438,3]
[402433911,1768677047356,-729.29,0.00016438,3]
[402433912,1768677047366,-500.0,0.00016438,3]
[402433913,1768677047375,-500.0,0.00016438,3]
[402433914,1768677047385,-500.0,0.00016438,3]
[402433915,1768677047394,-1300.92,0.00016438,3]
[402433916,1768677047404,-500.0,0.00016438,3]
[402433917,1768677047413,-500.0,0.00016438,3]
[402433918,1768677047423,-500.0,0.00016438,3]
[402433919,1768677047433,-500.0,0.00016438,3]
[402433920,1768677047443,-500.0,0.00016438,3]
[402433921,1768677047453,-500.0,0.00016438,3]
[402433922,1768677047463,-917.63,0.00016438,3]
[402433923,1768677047473,-500.0,0.00016438,3]
[402433924,1768677047482,-1000.0,0.00016438,2]
[402433925,1768677047492,-1231.73,0.00016438,3]
[402433926,1768677047502,-500.0,0.00016438,3]
[402433927,1768677047512,-500.0,0.00016438,3]
[402433928,1768677047523,-547.52,0.00016438,3]
[402433929,1768677047533,-500.0,0.00016438,3]
[402433930,1768677047543,-500.0,0.00016438,3]
[402433931,1768677047553,-500.0,0.00016438,3]
[402433932,1768677047562,-500.0,0.00016438,3]
[402433933,1768677047572,-500.0,0.00016438,3]
[402433934,1768677047581,-821.19,0.00016438,3]
[402433935,1768677047591,-500.0,0.00016438,3]
[402433936,1768677047600,-500.0,0.00016438,3]
[402433937,1768677047610,-1266.79,0.00016438,3]
[402433938,1768677047620,-520.45,0.00016438,3]
[402433939,1768677047630,-500.0,0.00016438,3]
[402433940,1768677047640,-500.0,0.00016438,3]
[402433941,1768677047649,-522.28,0.00016438,3]
[402433942,1768677047659,-654.08,0.00016438,3]
[402433943,1768677047669,-610.79,0.00016438,3]
[402433944,1768677047678,-500.0,0.00016438,3]
[402433945,1768677047688,-500.0,0.00016438,3]
[402433946,1768677047697,-571.51,0.00016438,3]
[402433947,1768677047708,-500.0,0.00016438,3]
[402433948,1768677047718,-500.0,0.00016438,3]
[402433949,1768677047727,-500.0,0.00016438,3]
[402433950,1768677047740,-500.0,0.00016438,3]
[402433951,1768677047750,-500.0,0.00016438,3]
[402433952,1768677047760,-768.76,0.00016438,3]
[402433953,1768677047770,-500.0,0.00016438,3]
[402433954,1768677047779,-788.51,0.00016438,3]
[402433955,1768677047789,-500.0,0.00016438,3]
[402433956,1768677047798,-500.0,0.00016438,3]
[402433957,1768677047807,-500.0,0.00016438,3]
[402433958,1768677047816,-500.0,0.00016438,3]
[402433959,1768677047825,-500.0,0.00016438,3]
[402433960,1768677047835,-532.99,0.00016438,3]
[402433961,1768677047845,-500.0,0.00016438,3]
[402433962,1768677047854,-500.0,0.00016438,2]
[402433963,1768677047864,-500.0,0.00016438,3]
[402433964,1768677047873,-500.0,0.00016438,3]
[402433965,1768677047881,-500.0,0.00016438,3]
[402433966,1768677047891,-500.0,0.00016438,3]
[402433967,1768677047901,-500.0,0.00016438,3]
[402433968,1768677047912,-711.95,0.00016438,3]
[402433969,1768677047921,-500.0,0.00016438,3]
[402433970,1768677047930,-609.57,0.00016438,3]
[402433971,1768677047939,-500.0,0.00016438,3]
[402433972,1768677047948,-982.5,0.00016438,3]
[402433973,1768677047958,-500.0,0.00016438,3]
[402433974,1768677047967,-500.0,0.00016438,3]
[402433975,1768677047977,-500.0,0.00016438,3]
[402433976,1768677047987,-500.0,0.00016438,3]
[402433977,1768677047996,-1220.69,0.00016438,3]
[402433978,1768677048006,-524.68,0.00016438,3]
[402433979,1768677048015,-500.0,0.00016438,3]
[402433980,1768677048025,-500.0,0.00016438,3]
[402433981,1768677048034,-500.0,0.00016438,3]
[402433982,1768677048042,-1421.24,0.00016438,3]
[402433983,1768677048051,-500.0,0.00016438,3]
[402433984,1768677048060,-500.0,0.00016438,3]
[402433985,1768677048069,-500.0,0.00016438,3]
[402433986,1768677048078,-500.0,0.00016438,3]
[402433987,1768677048086,-500.0,0.00016438,3]
[402433988,1768677048095,-500.0,0.00016438,3]
[402433989,1768677048106,-500.0,0.00016438,3]
[402433990,1768677048115,-698.89,0.00016438,3]
[402433991,1768677048124,-521.62,0.00016438,3]
[402433992,1768677048134,-500.0,0.00016438,3]
[402433993,1768677048143,-500.0,0.00016438,3]
[402433994,1768677048152,-500.0,0.00016438,3]
[402433995,1768677048162,-500.0,0.00016438,3]
[402433996,1768677048171,-1628.67,0.00016438,3]
[402433997,1768677048181,-714.42,0.00016438,3]
[402433998,1768677048190,-500.0,0.00016438,3]
[402433999,1768677048199,-500.0,0.00016438,3]
[402434000,1768677048209,-769.6,0.00016438,3]
[402434001,1768677048219,-500.0,0.00016438,3]
[402434002,1768677048229,-882.36,0.00016438,3]
[402434003,1768677048238,-500.0,0.00016438,3]
[402434004,1768677048253,-937.01,0.00016438,3]
[402434005,1768677048263,-1071.96,0.00016438,3]
[402434006,1768677048272,-500.0,0.00016438,3]
[402434007,1768677048283,-500.0,0.00016438,3]
[402434008,1768677048293,-2532.74,0.00016438,3]
[402434009,1768677048302,-500.0,0.00016438,3]
[402434010,1768677048311,-500.0,0.00016438,3]
[402434011,1768677048320,-608.0,0.00016438,3]
[402434012,1768677048331,-500.0,0.00016438,3]
[402434013,1768677048340,-500.0,0.00016438,3]
[402434014,1768677048349,-945.0,0.00016438,3]
[402434015,1768677048358,-500.0,0.00016438,3]
[402434016,1768677048367,-500.0,0.00016438,3]
[402434017,1768677048376,-500.0,0.00016438,3]
[402434018,1768677048384,-500.0,0.00016438,3]
[402434019,1768677048394,-500.0,0.00016438,3]
[402434020,1768677048403,-724.98,0.00016438,3]
[402434021,1768677048412,-500.0,0.00016438,3]
[402434022,1768677048421,-500.0,0.00016438,3]
[402434023,1768677048430,-500.0,0.00016438,3]
[402434024,1768677048439,-500.0,0.00016438,3]
[402434025,1768677048449,-1226.14,0.00016438,3]
[402434026,1768677048458,-500.0,0.00016438,3]
[402434027,1768677048468,-500.0,0.00016438,3]
[402434028,1768677048477,-1192.38,0.00016438,3]
[402434029,1768677048486,-1440.02,0.00016438,3]
[402434030,1768677048496,-500.0,0.00016438,3]
[402434031,1768677048506,-500.0,0.00016438,3]
[402434032,1768677048515,-500.0,0.00016438,3]
[402434033,1768677048524,-427.39365242,0.00016438,3]
[402434034,1768677048533,-500.0,0.00016438,3]
[402434035,1768677048542,-507.13,0.00016438,3]
[402434036,1768677048552,-500.0,0.00016438,3]
[402434037,1768677048561,-500.0,0.00016438,3]
[402434038,1768677048571,-563.95,0.00016438,3]
[402434039,1768677048581,-888.73,0.00016438,3]
[402434040,1768677048590,-1322.85,0.00016438,3]
[402434041,1768677048600,-500.0,0.00016438,3]
[402434042,1768677048609,-577.24,0.00016438,3]
[402434043,1768677048619,-500.0,0.00016438,2]
[402434044,1768677048628,-424.34553456,0.00016438,3]
[402434045,1768677048638,-500.0,0.00016438,3]
[402434046,1768677048648,-500.0,0.00016438,3]
[402434047,1768677048657,-593.62,0.00016438,3]
[402434048,1768677048666,-500.0,0.00016438,3]
[402434049,1768677048676,-558.99,0.00016438,3]
[402434050,1768677048686,-523.99827377,0.00016438,3]
[402434051,1768677048695,-500.0,0.00016438,3]
[402434052,1768677048704,-532.55606123,0.00016438,3]
[402434053,1768677048713,-500.0,0.00016438,3]
[402434054,1768677048723,-943.41,0.00016438,3]
[402434055,1768677048732,-878.96,0.00016438,3]
[402434056,1768677048742,-500.0,0.00016438,3]
[402434057,1768677048751,-565.59190615,0.00016438,3]
[402434058,1768677048760,-500.0,0.00016438,3]
[402434059,1768677048769,-500.0,0.00016438,3]
[402434060,1768677048779,-500.0,0.00016438,3]
[402434061,1768677048788,-595.67,0.00016438,3]
[402434062,1768677048797,-500.0,0.00016438,3]
[402434063,1768677048807,-500.0,0.00016438,3]
[402434064,1768677048816,-500.0,0.00016438,3]
[402434065,1768677048825,-500.0,0.00016438,3]
[402434066,1768677048835,-500.0,0.00016438,3]
[402434067,1768677048844,-1717.69,0.00016438,3]
[402434068,1768677048853,-960.34,0.00016438,3]
[402434069,1768677048862,-500.0,0.00016438,3]
[402434070,1768677048871,-500.0,0.00016438,3]
[402434071,1768677048881,-500.0,0.00016438,3]
[402434072,1768677048890,-764.35,0.00016438,3]
[402434073,1768677048899,-500.0,0.00016438,3]
[402434074,1768677048909,-500.0,0.00016438,3]
[402434075,1768677048918,-1333.16,0.00016438,3]
[402434076,1768677048928,-500.0,0.00016438,3]
[402434077,1768677048937,-500.0,0.00016438,3]
[402434078,1768677048946,-500.0,0.00016438,3]
[402434079,1768677048955,-1834.32,0.00016438,3]
[402434080,1768677048965,-500.0,0.00016438,3]
[402434081,1768677048974,-968.64,0.00016438,3]
[402434082,1768677048984,-1272.0,0.00016438,3]
[402434083,1768677048993,-500.0,0.00016438,3]
[402434084,1768677049003,-500.0,0.00016438,3]
[402434085,1768677049012,-500.0,0.00016438,3]
[402434086,1768677049022,-500.0,0.00016438,3]
[402434087,1768677049033,-533.67555497,0.00016438,3]
[402434088,1768677049043,-1630.85,0.00016438,3]
[402434089,1768677049052,-1384.14,0.00016438,3]
[402434090,1768677049061,-500.0,0.00016438,3]
[402434091,1768677049071,-680.46,0.00016438,3]
[402434092,1768677049081,-195.7,0.00016438,2]
[402434093,1768677049090,-479.17924292,0.00016438,2]
[402434094,1768677049101,-668.86,0.00016438,3]
[402434095,1768677049111,-500.0,0.00016438,3]
[402434096,1768677049122,-500.0,0.00016438,3]
[402434097,1768677049132,-500.0,0.00016438,3]
[402434098,1768677049142,-500.0,0.00016438,3]
[402434099,1768677049152,-500.0,0.00016438,3]
[402434100,1768677049161,-500.0,0.00016438,3]
[402434101,1768677049171,-500.0,0.00016438,3]
[402434102,1768677049180,-500.0,0.00016438,3]
[402434103,1768677049189,-1316.96,0.00016438,3]
[402434104,1768677049199,-500.0,0.00016438,3]
[402434105,1768677049208,-500.0,0.00016438,3]
[402434106,1768677049218,-500.0,0.00016438,3]
[402434107,1768677049228,-501.47481174,0.00016438,3]
[402434108,1768677049237,-500.0,0.00016438,3]
[402434109,1768677049248,-500.0,0.00016438,3]
[402434110,1768677049262,-500.0,0.00016438,3]
[402434111,1768677049271,-500.0,0.00016438,3]
[402434112,1768677049280,-706.96,0.00016438,3]
[402434113,1768677049291,-500.0,0.00016438,3]
[402434114,1768677049300,-500.0,0.00016438,3]
[402434115,1768677049310,-500.0,0.00016438,3]
[402434116,1768677049320,-500.0,0.00016438,3]
[402434117,1768677049329,-500.0,0.00016438,3]
[402434118,1768677049339,-500.0,0.00016438,3]
[402434119,1768677049348,-500.0,0.00016438,3]
[402434120,1768677049358,-500.0,0.00016438,3]
[402434121,1768677049367,-500.0,0.00016438,3]
[402434122,1768677049376,-1200.0,0.00016438,2]
[402434123,1768677049385,-895.54,0.00016438,3]
[402434124,1768677049394,-693.13,0.00016438,3]
[402434125,1768677049403,-1368.68,0.00016438,3]
[402434126,1768677049413,-500.0,0.00016438,3]
[402434127,1768677049423,-500.0,0.00016438,3]
[402434128,1768677049432,-1071.26,0.00016438,3]
[402434129,1768677049442,-854.25,0.00016438,3]
[402434130,1768677049451,-500.0,0.00016438,3]
[402434131,1768677049461,-822.61,0.00016438,3]
[402434132,1768677049471,-500.0,0.00016438,3]
[402434133,1768677049480,-500.0,0.00016438,3]
[402434134,1768677049490,-1040.52,0.00016438,3]
[402434135,1768677049500,-500.0,0.00016438,3]
[402434136,1768677049509,-500.0,0.00016438,3]
[402434137,1768677049519,-1915.54,0.00016438,3]
[402434138,1768677049529,-591.65,0.00016438,3]
[402434139,1768677049539,-1390.83,0.00016438,3]
[402434140,1768677049549,-500.0,0.00016438,3]
[402434141,1768677049559,-500.0,0.00016438,3]
[402434142,1768677049568,-500.0,0.00016438,3]
[402434143,1768677049578,-500.0,0.00016438,3]
[402434144,1768677049588,-500.0,0.00016438,3]
[402434145,1768677049598,-1757.22,0.00016438,3]
[402434146,1768677049607,-500.0,0.00016438,3]
[402434147,1768677049617,-500.0,0.00016438,3]
[402434148,1768677049627,-500.0,0.00016438,3]
[402434149,1768677049637,-500.0,0.00016438,3]
[402434150,1768677049647,-500.0,0.00016438,3]
[402434151,1768677049657,-838.7,0.00016438,3]
[402434152,1768677049666,-500.0,0.00016438,3]
[402434153,1768677049676,-481.66318474,0.00016438,3]
[402434154,1768677049687,-500.0,0.00016438,3]
[402434155,1768677049696,-151.0,0.00016438,2]
[402434156,1768677049706,-151.0,0.00016438,2]
[402434157,1768677049716,-500.0,0.00016438,3]
[402434158,1768677049726,-151.0,0.00016438,2]
[402434159,1768677049737,-151.0,0.00016438,2]
[402434160,1768677049746,-172.631544,0.00016438,3]
[402434161,1768677049756,-777.41,0.00016438,3]
[402434162,1768677049765,-298.75076,0.00016438,2]
[402434163,1768677049775,-739.58,0.00016438,3]
[402434164,1768677049785,-500.0,0.00016438,3]
[402434165,1768677049795,-500.0,0.00016438,3]
[402434166,1768677049805,-1043.16,0.00016438,3]
[402434167,1768677049814,-500.0,0.00016438,3]
[402434168,1768677049824,-526.3812206,0.00016438,3]
[402434169,1768677049834,-1407.98,0.00016438,3]
[402434170,1768677049849,-505.87,0.00016438,3]
[402434171,1768677049858,-500.0,0.00016438,3]
[402434172,1768677049868,-500.0,0.00016438,3]
[402434173,1768677049878,-500.0,0.00016438,3]
[402434174,1768677049888,-500.0,0.00016438,3]
[402434175,1768677049898,-158.856128,0.00016438,3]
[402434176,1768677049908,-856.56,0.00016438,3]
[402434177,1768677049918,-500.0,0.00016438,3]
[402434178,1768677049928,-500.0,0.00016438,3]
[402434179,1768677049938,-500.0,0.00016438,3]
[402434180,1768677049948,-500.0,0.00016438,3]
[402434181,1768677049957,-500.0,0.00016438,3]
[402434182,1768677049968,-1416.3,0.00016438,3]
[402434183,1768677049977,-500.0,0.00016438,3]
[402434184,1768677049987,-500.0,0.00016438,3]
[402434185,1768677049997,-500.0,0.00016438,3]
[402434186,1768677050007,-500.0,0.00016438,3]
[402434187,1768677050016,-1545.1,0.00016438,3]
[402434188,1768677050026,-500.0,0.00016438,3]
[402434189,1768677050036,-500.0,0.00016438,3]
[402434190,1768677050045,-500.0,0.00016438,3]
[402434191,1768677050054,-513.29,0.00016438,3]
[402434192,1768677050064,-500.0,0.00016438,3]
[402434193,1768677050076,-500.0,0.00016438,3]
[402434194,1768677050086,-1494.01,0.00016438,3]
[402434195,1768677050096,-1051.96,0.00016438,3]
[402434196,1768677050106,-504.64,0.00016438,3]
[402434197,1768677050116,-500.0,0.00016438,3]
[402434198,1768677050125,-500.0,0.00016438,3]
[402434199,1768677050135,-500.0,0.00016438,3]
[402434200,1768677050145,-741.79,0.00016438,3]
[402434201,1768677050155,-500.0,0.00016438,3]
[402434202,1768677050165,-709.42,0.00016438,3]
[402434203,1768677050175,-500.0,0.00016438,3]
[402434204,1768677050185,-450.64316952,0.00016438,3]
[402434205,1768677050194,-500.0,0.00016438,3]
[402434206,1768677050204,-500.0,0.00016438,3]
[402434207,1768677050213,-500.0,0.00016438,3]
[402434208,1768677050224,-500.0,0.00016438,3]
[402434209,1768677050234,-503.06859357,0.00016438,3]
[402434210,1768677050244,-500.0,0.00016438,3]
[402434211,1768677050256,-1957.51,0.00016438,3]
[402434212,1768677050266,-500.0,0.00016438,3]
[402434213,1768677050276,-500.0,0.00016438,3]
[402434214,1768677050287,-183.73779352,0.00016438,3]
[402434215,1768677050296,-500.0,0.00016438,3]
[402434216,1768677050307,-1860.69,0.00016438,3]
[402434217,1768677050317,-500.0,0.00016438,3]
[402434218,1768677050329,-762.35,0.00016438,3]
[402434219,1768677050339,-627.94,0.00016438,3]
[402434220,1768677050348,-500.0,0.00016438,3]
[402434221,1768677050358,-500.0,0.00016438,3]
[402434222,1768677050373,-500.0,0.00016438,3]
[402434223,1768677050384,-500.0,0.00016438,3]
[402434224,1768677050394,-505.92,0.00016438,3]
[402434225,1768677050404,-898.93,0.00016438,3]
[402434226,1768677050415,-500.0,0.00016438,3]
[402434227,1768677050425,-545.77,0.00016438,3]
[402434228,1768677050436,-500.0,0.00016438,3]
[402434229,1768677050447,-1944.24,0.00016438,3]
[402434230,1768677050457,-500.0,0.00016438,3]
[402434231,1768677050467,-500.0,0.00016438,3]
[402434232,1768677050478,-500.0,0.00016438,3]